[Event "IV Elllobregat Open Chess Tmnt"]
[Site "Sant Boi de Llobregat, Spain"]
[Date "2023.12.02"]
[Round "3.3"]
[White "Koellner, Ruben Gideon"]
[Black "Narayanan, SL"]
[Result "0-1"]
[TimeControl "90min/40moves + 15min/end + 30sec from move 1"]
[WhiteFideId "12993093"]
[BlackFideId "5058422"]
[WhiteElo "2488"]
[BlackElo "2668"]

1. d4 {[%clk 01:30:54]} {[%emt 00:00:05]} Nf6 {[%clk 01:30:52]} {[%emt
00:00:09]} 2. Nf3 {[%clk 01:31:06]} {[%emt 00:00:17]} d5 {[%clk 01:30:57]}
{[%emt 00:00:26]} 3. Bf4 {[%clk 01:31:17]} {[%emt 00:00:19]} c5 {[%clk
01:31:17]} {[%emt 00:00:10]} 4. e3 {[%clk 01:31:38]} {[%emt 00:00:09]} Nc6
{[%clk 01:31:35]} {[%emt 00:00:13]} 5. Nbd2 {[%clk 01:31:55]} {[%emt 00:00:12]}
e6 {[%clk 01:31:34]} {[%emt 00:00:31]} 6. c3 {[%clk 01:31:48]} {[%emt
00:00:37]} cxd4 {[%emt 00:00:31]} 7. exd4 {[%clk 01:31:57]} {[%emt 00:00:01]}
Nh5 {[%clk 01:32:13]} {[%emt 00:00:10]} 8. Be3 {[%clk 01:31:59]} {[%emt
00:00:28]} Bd6 {[%clk 01:32:25]} {[%emt 00:00:18]} 9. Ne5 {[%clk 01:31:09]}
{[%emt 00:01:20]} Nf6 {[%clk 01:32:46]} {[%emt 00:00:09]} 10. f4 {[%clk
01:20:13]} {[%emt 00:11:25]} Qb6 {[%clk 01:33:08]} {[%emt 00:00:09]} 11. Qb3
{[%clk 01:15:22]} {[%emt 00:05:21]} Ng8 {[%clk 01:33:31]} {[%emt 00:00:07]} 12.
Qxb6 {[%clk 01:11:11]} {[%emt 00:04:42]} axb6 {[%clk 01:33:54]} {[%emt
00:00:06]} 13. a3 {[%clk 01:07:13]} {[%emt 00:04:29]} f6 {[%clk 01:31:59]}
{[%emt 00:02:23]} 14. Nd3 {[%clk 01:07:17]} {[%emt 00:00:27]} Nge7 {[%clk
01:31:26]} {[%emt 00:01:03]} 15. g3 {[%clk 01:05:19]} {[%emt 00:02:28]} Bd7
{[%clk 01:30:14]} {[%emt 00:01:42]} 16. Bh3 {[%clk 01:02:14]} {[%emt 00:03:34]}
Na5 {[%clk 01:28:49]} {[%emt 00:01:56]} 17. Nb4 {[%clk 00:59:31]} {[%emt
00:03:13]} b5 {[%clk 01:14:13]} {[%emt 00:15:06]} 18. O-O {[%clk 00:57:10]}
{[%emt 00:02:51]} Nc4 {[%clk 01:14:14]} {[%emt 00:00:29]} 19. Nxc4 {[%clk
00:57:33]} {[%emt 00:00:08]} bxc4 {[%clk 01:14:18]} {[%emt 00:00:25]} 20. Rae1
{[%clk 00:56:48]} {[%emt 00:01:14]} Kf7 {[%clk 01:10:46]} {[%emt 00:04:02]} 21.
Rf2 {[%clk 00:56:05]} {[%emt 00:01:13]} Bxb4 {[%clk 01:06:33]} {[%emt
00:04:43]} 22. axb4 {[%clk 00:55:17]} {[%emt 00:01:19]} h5 {[%clk 01:03:13]}
{[%emt 00:03:50]} 23. Rfe2 {[%clk 00:55:16]} {[%emt 00:00:31]} f5 {[%clk
01:01:48]} {[%emt 00:01:54]} 24. Bg2 {[%clk 00:53:08]} {[%emt 00:02:37]} Ra2
{[%clk 00:57:48]} {[%emt 00:04:31]} 25. Bf3 {[%clk 00:51:06]} {[%emt 00:02:32]}
Ng8 {[%clk 00:53:34]} {[%emt 00:04:44]} 26. h3 {[%clk 00:49:04]} {[%emt
00:02:32]} Nf6 {[%clk 00:53:54]} {[%emt 00:00:10]} 27. Bc1 {[%clk 00:42:37]}
{[%emt 00:06:57]} Ra1 {[%clk 00:49:43]} {[%emt 00:04:42]} 28. Kf2 {[%clk
00:38:49]} {[%emt 00:04:18]} Rha8 {[%clk 00:49:12]} {[%emt 00:01:01]} 29. Be3
{[%clk 00:37:29]} {[%emt 00:01:49]} Rxe1 {[%clk 00:47:42]} {[%emt 00:02:01]} 30.
Rxe1 {[%clk 00:25:15]} {[%emt 00:12:45]} Ra2 {[%clk 00:47:48]} {[%emt
00:00:23]} 31. Bc1 {[%clk 00:25:37]} {[%emt 00:00:08]} Ba4 {[%clk 00:47:57]}
{[%emt 00:00:21]} 32. Ke3 {[%clk 00:23:34]} {[%emt 00:02:33]} Bc2 {[%clk
00:47:44]} {[%emt 00:00:42]} 33. Rg1 {[%clk 00:23:30]} {[%emt 00:00:34]} Ra1
{[%clk 00:42:30]} {[%emt 00:05:45]} 34. Kd2 {[%clk 00:23:15]} {[%emt 00:00:45]}
Be4 {[%clk 00:41:54]} {[%emt 00:01:06]} 35. Bd1 {[%clk 00:22:34]} {[%emt
00:01:10]} Ra8 {[%clk 00:38:55]} {[%emt 00:03:30]} 36. h4 {[%clk 00:20:25]}
{[%emt 00:02:39]} Ra1 {[%clk 00:37:20]} {[%emt 00:02:04]} 37. Be2 {[%clk
00:20:43]} {[%emt 00:00:12]} Ke7 {[%clk 00:37:16]} {[%emt 00:00:34]} 38. Bd1
{[%clk 00:21:07]} {[%emt 00:00:06]} Bd3 {[%clk 00:33:48]} {[%emt 00:03:58]} 39.
Bf3 {[%clk 00:21:28]} {[%emt 00:00:09]} g6 {[%clk 00:28:21]} {[%emt 00:05:58]}
40. Ke3 {[%clk 00:36:17]} {[%emt 00:00:40]} Kd6 {[%clk 00:42:50]} {[%emt
00:01:02]} 41. Kd2 {[%clk 00:34:49]} {[%emt 00:01:58]} Be4 {[%clk 00:41:15]}
{[%emt 00:02:05]} 42. Bd1 {[%clk 00:35:05]} {[%emt 00:00:12]} Bb1 {[%clk
00:41:20]} {[%emt 00:00:26]} 43. Bf3 {[%clk 00:34:11]} {[%emt 00:01:23]} Ba2
{[%clk 00:41:14]} {[%emt 00:00:38]} 44. Re1 {[%clk 00:33:51]} {[%emt 00:00:49]}
Bb3 {[%clk 00:41:20]} {[%emt 00:00:25]} 45. Ke3 {[%clk 00:34:00]} {[%emt
00:00:21]} Nd7 {[%clk 00:40:53]} {[%emt 00:00:57]} 46. Kd2 {[%clk 00:29:33]}
{[%emt 00:04:56]} Nb6 {[%clk 00:40:36]} {[%emt 00:00:48]} 47. Bd1 {[%clk
00:29:19]} {[%emt 00:00:44]} Na4 {[%clk 00:35:00]} {[%emt 00:06:07]} 48. Bc2
{[%clk 00:29:12]} {[%emt 00:00:36]} Nb6 {[%clk 00:33:54]} {[%emt 00:01:37]} 49.
Bd1 {[%clk 00:29:25]} {[%emt 00:00:17]} Kd7 {[%clk 00:26:20]} {[%emt 00:08:04]}
50. Bc2 {[%clk 00:29:18]} {[%emt 00:00:36]} Nc8 {[%clk 00:26:19]} {[%emt
00:00:32]} 51. Bd1 {[%clk 00:27:45]} {[%emt 00:02:03]} Nd6 {[%clk 00:26:44]}
{[%emt 00:00:06]} 52. Bc2 {[%clk 00:25:37]} {[%emt 00:02:37]} Ke7 {[%clk
00:12:56]} {[%emt 00:14:19]} 53. Rg1 {[%clk 00:25:36]} {[%emt 00:00:29]} Kf6
{[%clk 00:11:59]} {[%emt 00:01:28]} 54. Re1 {[%clk 00:25:57]} {[%emt 00:00:09]}
Nb5 {[%clk 00:11:05]} {[%emt 00:01:24]} 55. Re3 {[%clk 00:20:15]} {[%emt
00:06:11]} Nd6 {[%clk 00:08:21]} {[%emt 00:03:15]} 56. Re1 {[%clk 00:20:39]}
{[%emt 00:00:05]} Ne4+ {[%clk 00:07:50]} {[%emt 00:01:00]} 57. Bxe4 {[%clk
00:21:03]} {[%emt 00:00:06]} fxe4 {[%clk 00:08:08]} {[%emt 00:00:12]} 58. Ke2
{[%clk 00:16:52]} {[%emt 00:04:41]} Kf5 {[%clk 00:06:52]} {[%emt 00:01:47]} 59.
Kf2 {[%clk 00:16:09]} {[%emt 00:01:12]} Rb1 {[%clk 00:07:07]} {[%emt 00:00:14]}
60. Rg1 {[%clk 00:12:41]} {[%emt 00:03:58]} Bc2 {[%clk 00:07:18]} {[%emt
00:00:19]} 61. Ke3 {[%clk 00:12:52]} {[%emt 00:00:18]} Bd3 {[%clk 00:07:36]}
{[%emt 00:00:14]} 62. Kf2 {[%clk 00:13:08]} {[%emt 00:00:13]} Kg4 {[%clk
00:07:52]} {[%emt 00:00:15]} 63. Ke3 {[%clk 00:13:31]} {[%emt 00:00:06]} Ra1
{[%clk 00:07:21]} {[%emt 00:01:02]} 64. Kf2 {[%clk 00:13:48]} {[%emt 00:00:12]}
Ra8 {[%clk 00:06:55]} {[%emt 00:00:57]} 65. Be3 {[%clk 00:13:08]} {[%emt
00:01:10]} Kf5 {[%clk 00:07:18]} {[%emt 00:00:07]} 66. Bc1 {[%clk 00:13:02]}
{[%emt 00:00:36]} Ra2 {[%clk 00:07:42]} {[%emt 00:00:06]} 67. Re1 {[%clk
00:11:17]} {[%emt 00:02:14]} Kf6 {[%clk 00:08:07]} {[%emt 00:00:05]} 68. Rg1
{[%clk 00:11:35]} {[%emt 00:00:12]} Ke7 {[%clk 00:08:07]} {[%emt 00:00:31]} 69.
Ke3 {[%clk 00:08:53]} {[%emt 00:03:12]} Ra1 {[%clk 00:08:05]} {[%emt 00:00:32]}
70. Re1 {[%clk 00:06:41]} {[%emt 00:02:40]} Kd7 {[%clk 00:08:17]} {[%emt
00:00:19]} 71. Bd2 {[%clk 00:05:47]} {[%emt 00:01:24]} Ra2 {[%clk 00:08:44]}
{[%emt 00:00:04]} 72. Bc1 {[%clk 00:05:53]} {[%emt 00:00:23]} Kc6 {[%clk
00:09:11]} {[%emt 00:00:03]} 73. Kd2 {[%clk 00:03:37]} {[%emt 00:02:46]} Kb5
{[%clk 00:09:08]} {[%emt 00:00:33]} 74. Rg1 {[%clk 00:03:33]} {[%emt 00:00:34]}
Ra1 {[%clk 00:09:28]} {[%emt 00:00:10]} 75. Re1 {[%clk 00:03:02]} {[%emt
00:01:01]} Ka4 {[%clk 00:09:52]} {[%emt 00:00:06]} 76. Rg1 {[%clk 00:03:26]}
{[%emt 00:00:06]} Kb3 {[%clk 00:10:17]} {[%emt 00:00:04]} 77. Re1 {[%clk
00:03:51]} {[%emt 00:00:05]} Ra2 {[%clk 00:10:19]} {[%emt 00:00:29]} 78. Kd1
{[%clk 00:02:16]} {[%emt 00:02:04]} Ra1 {[%clk 00:09:17]} {[%emt 00:01:33]} 79.
Kd2 {[%clk 00:02:41]} {[%emt 00:00:05]} Ra8 {[%clk 00:09:29]} {[%emt 00:00:17]}
80. Kd1 {[%clk 00:02:49]} {[%emt 00:00:23]} Bc2+ {[%clk 00:09:40]} {[%emt
00:00:19]} 81. Ke2 {[%clk 00:02:58]} {[%emt 00:00:20]} Rd8 {[%clk 00:06:30]}
{[%emt 00:03:40]} 82. Ke3 {[%clk 00:01:56]} {[%emt 00:01:32]} Bd3 {[%clk
00:06:49]} {[%emt 00:00:11]} 83. Kd2 {[%clk 00:02:03]} {[%emt 00:00:24]} Rf8
{[%clk 00:06:32]} {[%emt 00:00:47]} 84. Kd1 {[%clk 00:02:20]} {[%emt 00:00:13]}
Rf7 {[%clk 00:06:21]} {[%emt 00:00:41]} 85. Rg1 {[%clk 00:01:08]} {[%emt
00:01:41]} e3 {[%clk 00:06:32]} {[%emt 00:00:19]} 86. Bxe3 {[%clk 00:01:13]}
{[%emt 00:00:25]} Kxb2 {[%clk 00:06:57]} {[%emt 00:00:06]} 87. Bd2 {[%clk
00:00:51]} {[%emt 00:00:52]} Rf8 {[%clk 00:07:06]} {[%emt 00:00:21]} 88. Be1
{[%clk 00:01:10]} {[%emt 00:00:11]} Ra8 {[%clk 00:07:16]} {[%emt 00:00:19]} 89.
Kd2 {[%clk 00:00:55]} {[%emt 00:00:45]} Kb3 {[%clk 00:07:15]} {[%emt 00:00:32]}
90. Ke3 {[%clk 00:01:07]} {[%emt 00:00:18]} Ra1 {[%clk 00:07:33]} {[%emt
00:00:12]} 91. b5 {[%clk 00:01:15]} {[%emt 00:00:22]} Bf5 {[%clk 00:07:10]}
{[%emt 00:00:53]} 92. b6 {[%clk 00:00:56]} {[%emt 00:00:50]} Ra6 {[%clk
00:07:34]} {[%emt 00:00:06]} 93. Bd2 {[%clk 00:01:04]} {[%emt 00:00:22]} Rxb6
{[%clk 00:07:55]} {[%emt 00:00:09]} 94. Rc1 {[%clk 00:01:09]} {[%emt 00:00:24]}
Ra6 {[%clk 00:08:17]} {[%emt 00:00:08]} 95. Kf2 {[%clk 00:01:25]} {[%emt
00:00:14]} b5 {[%clk 00:08:36]} {[%emt 00:00:11]} 96. Ke3 {[%clk 00:01:44]}
{[%emt 00:00:10]} Kb2 {[%clk 00:08:52]} {[%emt 00:00:14]} 97. Kf2 {[%clk
00:01:58]} {[%emt 00:00:16]} Ra3 {[%clk 00:09:13]} {[%emt 00:00:10]} 98. Ke2
{[%clk 00:02:16]} {[%emt 00:00:11]} Bc2 {[%clk 00:08:48]} {[%emt 00:00:55]} 99.
Kf2 {[%clk 00:01:33]} {[%emt 00:01:13]} Rxc3 {[%clk 00:09:06]} {[%emt
00:00:12]} 100. Bxc3+ {[%clk 00:01:59]} {[%emt 00:00:04]} Kxc3 {[%clk
00:09:29]} {[%emt 00:00:07]} 0-1

[Event "IV Elllobregat Open Chess Tmnt"]
[Site "Sant Boi de Llobregat, Spain"]
[Date "2023.12.02"]
[Round "3.4"]
[White "Pichot, Alan"]
[Black "Velten, Paul"]
[Result "1-0"]
[TimeControl "90min/40moves + 15min/end + 30sec from move 1"]
[WhiteFideId "110973"]
[BlackFideId "681091"]
[WhiteElo "2650"]
[BlackElo "2489"]

1. e4 {[%clk 01:29:07]} {[%emt 00:01:52]} e6 {[%clk 01:30:31]} {[%emt
00:00:30]} 2. d4 {[%clk 01:29:26]} {[%emt 00:00:10]} d5 {[%clk 01:30:29]}
{[%emt 00:00:31]} 3. Nc3 {[%clk 01:29:47]} {[%emt 00:00:10]} Nf6 {[%clk
01:30:00]} {[%emt 00:00:58]} 4. e5 {[%clk 01:30:01]} {[%emt 00:00:17]} Ng8
{[%clk 01:29:46]} {[%emt 00:00:44]} 5. f4 {[%clk 01:14:51]} {[%emt 00:15:39]}
c5 {[%clk 01:22:15]} {[%emt 00:08:01]} 6. Nf3 {[%clk 01:15:07]} {[%emt
00:00:15]} Nc6 {[%clk 01:18:58]} {[%emt 00:03:46]} 7. Be3 {[%clk 01:06:25]}
{[%emt 00:09:12]} cxd4 {[%clk 01:08:05]} {[%emt 00:11:23]} 8. Nxd4 {[%clk
01:06:23]} {[%emt 00:00:32]} Nxd4 {[%clk 01:08:12]} {[%emt 00:00:24]} 9. Bxd4
{[%clk 00:58:19]} {[%emt 00:08:35]} Ne7 {[%clk 01:08:18]} {[%emt 00:00:24]} 10.
Bd3 {[%clk 00:51:01]} {[%emt 00:07:47]} Nc6 {[%clk 01:04:41]} {[%emt 00:04:07]}
11. Bf2 {[%clk 00:51:18]} {[%emt 00:00:13]} Qa5 {[%clk 01:01:56]} {[%emt
00:03:16]} 12. O-O {[%clk 00:49:32]} {[%emt 00:02:15]} Bc5 {[%clk 01:01:54]}
{[%emt 00:00:31]} 13. Nb5 {[%clk 00:39:13]} {[%emt 00:10:50]} Be7 {[%clk
01:01:06]} {[%emt 00:01:18]} 14. c3 {[%clk 00:32:33]} {[%emt 00:07:10]} O-O
{[%clk 00:51:04]} {[%emt 00:10:31]} 15. Qh5 {[%clk 00:21:05]} {[%emt 00:11:58]}
g6 {[%clk 00:47:14]} {[%emt 00:04:21]} 16. Qh6 {[%clk 00:20:27]} {[%emt
00:01:08]} f5 {[%clk 00:46:47]} {[%emt 00:00:56]} 17. Bh4 {[%clk 00:16:59]}
{[%emt 00:03:58]} Qb6+ {[%clk 00:37:27]} {[%emt 00:09:50]} 18. Bf2 {[%clk
00:15:47]} {[%emt 00:01:42]} Qd8 {[%clk 00:37:01]} {[%emt 00:00:56]} 19. Kh1
{[%clk 00:14:52]} {[%emt 00:01:25]} a6 {[%clk 00:36:20]} {[%emt 00:01:11]} 20.
Nd4 {[%clk 00:14:42]} {[%emt 00:00:39]} Nxd4 {[%clk 00:36:27]} {[%emt
00:00:23]} 21. Bxd4 {[%clk 00:14:55]} {[%emt 00:00:17]} Bd7 {[%clk 00:36:23]}
{[%emt 00:00:34]} 22. a4 {[%clk 00:14:25]} {[%emt 00:01:01]} Rf7 {[%clk
00:36:23]} {[%emt 00:00:30]} 23. Qh3 {[%clk 00:12:39]} {[%emt 00:02:15]} a5
{[%clk 00:35:41]} {[%emt 00:01:12]} 24. g4 {[%clk 00:10:55]} {[%emt 00:02:14]}
fxg4 {[%clk 00:23:48]} {[%emt 00:12:24]} 25. Qxg4 {[%clk 00:11:20]} {[%emt
00:00:05]} Qf8 {[%clk 00:23:58]} {[%emt 00:00:20]} 26. Rf3 {[%clk 00:09:59]}
{[%emt 00:01:51]} Qh6 {[%emt 00:02:28]} 27. Rg1 {[%clk 00:08:56]} Qf8 {[%clk
00:12:08]} {[%emt 00:11:55]} 28. Rh3 {[%clk 00:07:31]} {[%emt 00:01:55]} Rg7
{[%clk 00:11:56]} {[%emt 00:00:42]} 29. Bb5 {[%clk 00:04:25]} {[%emt 00:03:37]}
Qe8 {[%clk 00:11:01]} {[%emt 00:01:25]} 30. Rf3 {[%clk 00:04:08]} {[%emt
00:00:47]} Bf8 {[%clk 00:11:13]} {[%emt 00:00:18]} 31. Bd3 {[%clk 00:02:40]}
{[%emt 00:01:58]} Bxa4 {[%clk 00:09:40]} {[%emt 00:02:04]} 32. h4 {[%clk
00:03:05]} {[%emt 00:00:04]} Rc8 {[%clk 00:05:52]} {[%emt 00:04:18]} 33. Rfg3
{[%clk 00:02:52]} {[%emt 00:00:43]} Rcc7 {[%clk 00:06:13]} {[%emt 00:00:09]} 34.
Qh3 {[%clk 00:02:11]} {[%emt 00:01:10]} Kh8 {[%clk 00:04:20]} {[%emt 00:02:23]}
35. h5 {[%clk 00:01:44]} {[%emt 00:00:57]} gxh5 {[%clk 00:04:43]} {[%emt
00:00:07]} 36. f5 {[%clk 00:02:06]} {[%emt 00:00:08]} Rxg3 {[%clk 00:05:08]}
{[%emt 00:00:05]} 37. Rxg3 {[%clk 00:02:15]} {[%emt 00:00:22]} Bd1 {[%clk
00:05:09]} {[%emt 00:00:29]} 38. f6 {[%clk 00:00:44]} {[%emt 00:02:01]} Bg4
{[%clk 00:05:31]} {[%emt 00:00:08]} 39. Qh4 {[%clk 00:00:38]} {[%emt 00:00:36]}
b5 {[%clk 00:04:26]} {[%emt 00:01:35]} 40. Qg5 {[%clk 00:15:41]} {[%emt
00:00:27]} b4 {[%clk 00:18:23]} {[%emt 00:01:33]} 41. cxb4 {[%clk 00:13:34]}
{[%emt 00:02:37]} axb4 {[%clk 00:16:58]} {[%emt 00:01:55]} 42. Rg1 {[%clk
00:13:32]} {[%emt 00:00:32]} b3 {[%clk 00:11:07]} {[%emt 00:06:22]} 43. Kh2
{[%clk 00:10:06]} {[%emt 00:03:55]} Qa4 {[%clk 00:10:21]} {[%emt 00:01:16]} 44.
Qf4 {[%clk 00:08:59]} {[%emt 00:01:37]} Kg8 {[%clk 00:10:31]} {[%emt 00:00:20]}
45. Bf5 {[%clk 00:06:40]} {[%emt 00:02:50]} exf5 {[%clk 00:09:01]} {[%emt
00:02:00]} 46. e6 {[%clk 00:06:55]} {[%emt 00:00:14]} Rc2+ {[%clk 00:06:11]}
{[%emt 00:03:20]} 47. Kh1 {[%clk 00:06:54]} {[%emt 00:00:31]} h6 {[%clk
00:06:21]} {[%emt 00:00:20]} 48. Rxg4+ {[%clk 00:07:14]} {[%emt 00:00:10]} 1-0

[Event "IV Elllobregat Open Chess Tmnt"]
[Site "Sant Boi de Llobregat, Spain"]
[Date "2023.12.02"]
[Round "3.5"]
[White "Gines Esteo, Pedro Antonio"]
[Black "Aravindh, Chithambaram Vr."]
[Result "0-1"]
[TimeControl "90min/40moves + 15min/end + 30sec from move 1"]
[WhiteFideId "32080190"]
[BlackFideId "5072786"]
[WhiteElo "2471"]
[BlackElo "2638"]

1. d4 {[%clk 01:30:55]} {[%emt 00:00:04]} d5 {[%clk 01:30:47]} {[%emt
00:00:13]} 2. c4 {[%clk 01:31:07]} {[%emt 00:00:18]} dxc4 {[%clk 01:31:04]}
{[%emt 00:00:13]} 3. Nf3 {[%clk 01:28:06]} {[%emt 00:03:30]} a6 {[%clk
01:30:50]} {[%emt 00:00:45]} 4. e3 {[%clk 01:17:54]} {[%emt 00:10:42]} Bg4
{[%clk 01:30:18]} {[%emt 00:00:58]} 5. Bxc4 {[%clk 01:15:29]} {[%emt 00:02:59]}
e6 {[%clk 01:30:40]} {[%emt 00:00:08]} 6. h3 {[%clk 01:03:08]} {[%emt
00:12:52]} Bh5 {[%clk 01:30:58]} {[%emt 00:00:12]} 7. g4 {[%clk 01:00:56]}
{[%emt 00:02:42]} Bg6 {[%clk 01:31:19]} {[%emt 00:00:08]} 8. Ne5 {[%clk
01:01:20]} {[%emt 00:00:06]} Be4 {[%clk 01:31:39]} {[%emt 00:00:10]} 9. f3
{[%clk 00:51:25]} {[%emt 00:10:26]} Bd5 {[%clk 01:31:52]} {[%emt 00:00:17]} 10.
Bxd5 {[%clk 00:51:38]} {[%emt 00:00:18]} exd5 {[%clk 01:32:05]} {[%emt
00:00:17]} 11. Qb3 {[%clk 00:52:01]} {[%emt 00:00:06]} Nc6 {[%clk 01:12:12]}
{[%emt 00:20:22]} 12. Nc3 {[%clk 00:46:44]} {[%emt 00:05:47]} Nxe5 {[%clk
01:08:03]} {[%emt 00:04:39]} 13. dxe5 {[%clk 00:46:49]} {[%emt 00:00:25]} Qh4+
{[%clk 01:07:51]} {[%emt 00:00:42]} 14. Kf1 {[%clk 00:29:59]} {[%emt 00:17:19]}
O-O-O {[%clk 01:02:32]} {[%emt 00:05:50]} 15. Kg2 {[%clk 00:30:06]} {[%emt
00:00:22]} Ne7 {[%clk 00:53:29]} {[%emt 00:09:32]} 16. e4 {[%clk 00:23:58]}
{[%emt 00:06:39]} d4 {[%clk 00:53:14]} {[%emt 00:00:45]} 17. Nd5 {[%clk
00:19:37]} {[%emt 00:04:51]} Nxd5 {[%clk 00:52:00]} {[%emt 00:01:45]} 18. exd5
{[%clk 00:20:04]} {[%emt 00:00:02]} f6 {[%clk 00:52:22]} {[%emt 00:00:08]} 19.
Bf4 {[%clk 00:11:50]} {[%emt 00:08:44]} fxe5 {[%clk 00:50:06]} {[%emt
00:02:47]} 20. Bxe5 {[%clk 00:11:50]} {[%emt 00:00:30]} Bd6 {[%clk 00:40:57]}
{[%emt 00:09:38]} 21. Bxd6 {[%clk 00:12:14]} {[%emt 00:00:05]} Rxd6 {[%clk
00:41:23]} {[%emt 00:00:04]} 22. Qc4 {[%clk 00:11:50]} {[%emt 00:00:55]} Qd8
{[%clk 00:38:21]} {[%emt 00:03:31]} 23. Rad1 {[%clk 00:07:47]} {[%emt
00:04:33]} Rxd5 {[%clk 00:38:09]} {[%emt 00:00:42]} 24. Rhe1 {[%clk 00:07:28]}
{[%emt 00:00:49]} Qd6 {[%clk 00:36:24]} {[%emt 00:02:14]} 25. Re4 {[%clk
00:07:24]} {[%emt 00:00:34]} d3 {[%clk 00:35:21]} {[%emt 00:01:33]} 26. Rd2
{[%clk 00:07:15]} {[%emt 00:00:40]} Rd8 {[%clk 00:33:59]} {[%emt 00:01:52]} 27.
h4 {[%clk 00:05:42]} {[%emt 00:02:02]} Kb8 {[%clk 00:28:48]} {[%emt 00:05:41]}
28. Qc3 {[%clk 00:05:19]} {[%emt 00:00:53]} Rd7 {[%clk 00:21:48]} {[%emt
00:07:30]} 29. b4 {[%clk 00:05:21]} {[%emt 00:00:29]} Re7 {[%clk 00:20:39]}
{[%emt 00:01:38]} 30. Qc4 {[%clk 00:04:38]} {[%emt 00:01:13]} Rxe4 {[%clk
00:16:43]} {[%emt 00:04:26]} 31. Qxe4 {[%clk 00:04:46]} {[%emt 00:00:21]} g6
{[%clk 00:17:09]} {[%emt 00:00:05]} 32. Qe8+ {[%clk 00:04:03]} {[%emt
00:01:14]} Ka7 {[%clk 00:17:29]} {[%emt 00:00:10]} 33. Qe3+ {[%clk 00:03:09]}
{[%emt 00:01:23]} b6 {[%clk 00:17:37]} {[%emt 00:00:22]} 34. a3 {[%clk
00:02:53]} {[%emt 00:00:46]} Rd4 {[%clk 00:16:31]} {[%emt 00:01:36]} 35. Qh6
{[%clk 00:02:41]} {[%emt 00:00:43]} Qe7 {[%clk 00:15:31]} {[%emt 00:01:29]} 36.
Kf2 {[%clk 00:02:22]} {[%emt 00:00:49]} Rd7 {[%clk 00:15:53]} {[%emt 00:00:08]}
37. Qg5 {[%clk 00:01:29]} {[%emt 00:01:23]} Qd6 {[%clk 00:14:44]} {[%emt
00:01:38]} 38. h5 {[%clk 00:00:41]} {[%emt 00:01:18]} gxh5 {[%clk 00:13:02]}
{[%emt 00:02:13]} 39. gxh5 {[%clk 00:00:36]} {[%emt 00:00:34]} Qd4+ {[%clk
00:11:58]} {[%emt 00:01:34]} 40. Qe3 {[%clk 00:15:47]} {[%emt 00:00:20]} Qh4+
{[%clk 00:26:49]} {[%emt 00:00:39]} 41. Kf1 {[%clk 00:16:15]} {[%emt 00:00:02]}
Re7 {[%clk 00:26:25]} {[%emt 00:00:53]} 0-1

[Event "IV Elllobregat Open Chess Tmnt"]
[Site "Sant Boi de Llobregat, Spain"]
[Date "2023.12.02"]
[Round "3.6"]
[White "Vaishali, Rameshbabu"]
[Black "Ter-Sahakyan, Samvel"]
[Result "0-1"]
[TimeControl "90min/40moves + 15min/end + 30sec from move 1"]
[WhiteFideId "5091756"]
[BlackFideId "13302531"]
[WhiteElo "2467"]
[BlackElo "2618"]

1. e4 {[%clk 01:30:25]} {[%emt 00:00:34]} c5 {[%clk 01:30:19]} {[%emt
00:00:40]} 2. Nf3 {[%clk 01:30:45]} {[%emt 00:00:11]} d6 {[%clk 01:30:44]}
{[%emt 00:00:05]} 3. d4 {[%clk 01:31:08]} {[%emt 00:00:07]} cxd4 {[%clk
01:31:09]} {[%emt 00:00:06]} 4. Nxd4 {[%clk 01:31:34]} {[%emt 00:00:04]} Nf6
{[%clk 01:31:33]} {[%emt 00:00:06]} 5. Nc3 {[%clk 01:31:57]} {[%emt 00:00:07]}
a6 {[%clk 01:31:58]} {[%emt 00:00:05]} 6. Be2 {[%clk 01:32:14]} {[%emt
00:00:13]} e5 {[%clk 01:32:23]} {[%emt 00:00:05]} 7. Nb3 {[%clk 01:32:34]}
{[%emt 00:00:11]} Be7 {[%clk 01:32:47]} {[%emt 00:00:05]} 8. O-O {[%clk
01:32:59]} {[%emt 00:00:05]} O-O {[%clk 01:33:12]} {[%emt 00:00:06]} 9. Be3
{[%clk 01:33:17]} {[%emt 00:00:12]} Be6 {[%clk 01:33:36]} {[%emt 00:00:06]} 10.
Re1 {[%clk 01:33:23]} {[%emt 00:00:24]} Nc6 {[%clk 01:29:13]} {[%emt 00:04:52]}
11. f3 {[%clk 01:28:44]} {[%emt 00:05:09]} b5 {[%clk 01:27:19]} {[%emt
00:02:25]} 12. a4 {[%clk 01:28:39]} {[%emt 00:00:35]} bxa4 {[%clk 01:27:36]}
{[%emt 00:00:12]} 13. Rxa4 {[%clk 01:28:40]} {[%emt 00:00:30]} Qb8 {[%clk
01:27:47]} {[%emt 00:00:18]} 14. Nd5 {[%clk 01:21:57]} {[%emt 00:07:13]} Bd8
{[%clk 01:21:44]} {[%emt 00:06:33]} 15. Bc4 {[%clk 01:09:46]} {[%emt 00:12:41]}
a5 {[%clk 01:21:11]} {[%emt 00:01:03]} 16. Nxf6+ {[%clk 00:55:03]} {[%emt
00:15:14]} Bxf6 {[%clk 01:20:49]} {[%emt 00:00:51]} 17. Bxe6 {[%clk 00:55:16]}
{[%emt 00:00:17]} fxe6 {[%clk 01:21:09]} {[%emt 00:00:10]} 18. Qe2 {[%clk
00:49:54]} {[%emt 00:05:52]} Rc8 {[%clk 01:07:05]} {[%emt 00:14:34]} 19. Rea1
{[%clk 00:41:37]} {[%emt 00:08:47]} h6 {[%clk 01:06:10]} {[%emt 00:01:24]} 20.
Qd1 {[%clk 00:38:27]} {[%emt 00:03:40]} Be7 {[%clk 00:57:39]} {[%emt 00:09:01]}
21. Bf2 {[%clk 00:25:44]} {[%emt 00:13:14]} Qb7 {[%clk 00:53:57]} {[%emt
00:04:12]} 22. h4 {[%clk 00:23:08]} {[%emt 00:03:06]} Rab8 {[%clk 00:52:24]}
{[%emt 00:02:03]} 23. Kh2 {[%clk 00:16:08]} {[%emt 00:07:29]} Kh8 {[%clk
00:49:36]} {[%emt 00:03:18]} 24. Kh3 {[%clk 00:12:39]} {[%emt 00:03:59]} Qd7
{[%clk 00:45:36]} {[%emt 00:04:29]} 25. Kh2 {[%clk 00:06:41]} {[%emt 00:06:29]}
Bd8 {[%clk 00:36:55]} {[%emt 00:09:11]} 26. Nc5 {[%clk 00:03:59]} {[%emt
00:03:12]} Qe7 {[%clk 00:36:24]} {[%emt 00:01:00]} 27. Nd3 {[%clk 00:04:05]}
{[%emt 00:00:25]} Bb6 {[%clk 00:35:59]} {[%emt 00:00:55]} 28. Qf1 {[%clk
00:01:49]} {[%emt 00:02:46]} Nb4 {[%clk 00:33:07]} {[%emt 00:03:22]} 29. Bxb6
{[%clk 00:00:43]} {[%emt 00:01:36]} Rxb6 {[%clk 00:30:59]} {[%emt 00:02:37]} 30.
Qf2 {[%clk 00:00:33]} {[%emt 00:00:41]} Rxc2 {[%clk 00:29:39]} {[%emt
00:01:51]} 31. Qxb6 {[%clk 00:00:36]} {[%emt 00:00:27]} Qxh4+ {[%clk 00:30:03]}
{[%emt 00:00:05]} 32. Kg1 {[%clk 00:01:04]} {[%emt 00:00:02]} Nxd3 {[%clk
00:30:21]} {[%emt 00:00:12]} 0-1